fUST/lending_fUST_20250302
["ID","MTS","AMOUNT","RATE_DAILY","PERIOD"]
[355053825,1740882660743,-151.0,0.00025205,7]
[355053826,1740882660752,-500.0,0.00025205,2]
[355053827,1740882660761,-501.95241474,0.00025205,2]
[355053828,1740882660771,-505.38114939,0.00025205,2]
[355053829,1740882660781,-500.0,0.00025205,2]
[355053830,1740882660790,-4879.73,0.00025205,2]
[355053831,1740882660800,-500.0,0.00025205,2]
[355053832,1740882660809,-500.0,0.00025205,2]
[355053833,1740882660819,-500.0,0.00025205,2]
[355053834,1740882660829,-500.0,0.00025205,2]
[355053835,1740882660839,-500.0,0.00025205,2]
[355053836,1740882660853,-500.0,0.00025205,2]
[355053837,1740882660865,-2047.08,0.00025205,2]
[355053838,1740882660874,-5858.04,0.00025205,2]
[355053839,1740882660883,-4201.36,0.00025205,2]
[355053840,1740882660892,-500.0,0.00025205,2]
[355053841,1740882660901,-504.46114064,0.00025205,2]
[355053842,1740882660910,-2545.03,0.00025205,2]
[355053843,1740882660919,-661.11,0.00025205,2]
[355053844,1740882660928,-660.12,0.00025205,2]
[355053845,1740882660937,-500.0,0.00025205,2]
[355053846,1740882660946,-500.0,0.00025205,2]
[355053847,1740882660956,-500.0,0.00025205,2]
[355053848,1740882660965,-500.0,0.00025205,2]
[355053849,1740882660974,-2696.97,0.00025205,2]
[355053850,1740882660985,-731.09,0.00025205,2]
[355053851,1740882660996,-500.0,0.00025205,2]
[355053852,1740882661006,-1732.36,0.00025205,2]
[355053853,1740882661015,-5763.38,0.00025205,2]
[355053854,1740882661025,-500.0,0.00025205,2]
[355053855,1740882661035,-500.0,0.00025205,2]
[355053856,1740882661044,-2434.62,0.00025205,2]
[355053857,1740882661053,-500.0,0.00025205,2]
[355053858,1740882661062,-1185.1,0.00025205,2]
[355053859,1740882661072,-193.456505,0.00025205,7]
[355053860,1740882661081,-500.0,0.00025205,2]
[355053861,1740882661090,-500.0,0.00025205,2]
[355053862,1740882661099,-151.23367,0.00025205,7]
[355053863,1740882661109,-1720.7,0.00025205,2]
[355053864,1740882661118,-193.456505,0.00025205,7]
[355053865,1740882661128,-500.0,0.00025205,2]
[355053866,1740882661137,-630.18,0.00025205,2]
[355053867,1740882661151,-1280.93,0.00025205,2]
[355053868,1740882661160,-979.74,0.00025205,2]
[355053869,1740882661169,-1560.48,0.00025205,2]
[355053870,1740882661179,-500.0,0.00025205,2]
[355053871,1740882661188,-757.47,0.00025205,2]
[355053872,1740882661197,-151.0,0.00025205,7]
[355053873,1740882661206,-500.0,0.00025205,2]
[355053874,1740882661216,-512.91,0.00025205,2]
[355053875,1740882661226,-500.0,0.00025205,2]
[355053876,1740882661236,-863.81,0.00025205,2]
[355053877,1740882661246,-500.0,0.00025205,2]
[355053878,1740882661256,-500.0,0.00025205,2]
[355053879,1740882661265,-500.0,0.00025205,2]
[355053880,1740882661275,-500.0,0.00025205,2]
[355053881,1740882661284,-1725.4,0.00025205,2]
[355053882,1740882661294,-500.0,0.00025205,2]
[355053883,1740882661304,-500.0,0.00025205,2]
[355053884,1740882661313,-500.0,0.00025205,2]
[355053885,1740882661322,-500.0,0.00025205,2]
[355053886,1740882661332,-526.33686858,0.00025205,2]
[355053887,1740882661341,-500.0,0.00025205,2]
[355053888,1740882661351,-895.04,0.00025205,2]
[355053889,1740882661360,-500.0,0.00025205,2]
[355053890,1740882661371,-500.0,0.00025205,2]
[355053891,1740882661382,-2304.35,0.00025205,2]
[355053892,1740882661392,-500.0,0.00025205,2]
[355053893,1740882661402,-500.0,0.00025205,2]
[355053894,1740882661411,-18426.38,0.00025205,2]
[355053895,1740882661421,-918.66,0.00025205,2]
[355053896,1740882661431,-500.0,0.00025205,2]
[355053897,1740882661440,-500.0,0.00025205,2]
[355053898,1740882661450,-500.0,0.00025205,2]
[355053899,1740882661460,-500.0,0.00025205,2]
[355053900,1740882661469,-500.0,0.00025205,2]
[355053901,1740882661478,-500.0,0.00025205,2]
[355053902,1740882661488,-545.63,0.00025205,2]
[355053903,1740882661503,-153.945834,0.00025205,7]
[355053904,1740882661512,-642.07,0.00025205,2]
[355053905,1740882661522,-648.02,0.00025205,2]
[355053906,1740882661531,-354.895394,0.00025205,7]
[355053907,1740882661541,-500.0,0.00025205,2]
[355053908,1740882661551,-1137.77,0.00025205,2]
[355053909,1740882661561,-354.895394,0.00025205,7]
[355053910,1740882661571,-523.72638745,0.00025205,2]
[355053911,1740882661580,-500.0,0.00025205,2]
[355053912,1740882661589,-13835.87,0.00025205,2]
[355053913,1740882661599,-1322.77,0.00025205,2]
[355053914,1740882661608,-8537.45,0.00025205,2]
[355053915,1740882661617,-500.0,0.00025205,2]
[355053916,1740882661626,-500.0,0.00025205,2]
[355053917,1740882661635,-500.0,0.00025205,2]
[355053918,1740882661644,-500.0,0.00025205,2]
[355053919,1740882661654,-500.0,0.00025205,2]
[355053920,1740882661663,-1329.7,0.00025205,2]
[355053921,1740882661672,-525.29,0.00025205,2]
[355053922,1740882661682,-967.58,0.00025205,2]
[355053923,1740882661691,-500.0,0.00025205,2]
[355053924,1740882661700,-503.54,0.00025205,2]
[355053925,1740882661711,-4131.11,0.00025205,2]
[355053926,1740882661725,-1423.0,0.00025205,2]
[355053927,1740882661739,-932.56,0.00025205,2]
[355053928,1740882661751,-505.31157383,0.00025205,2]
[355053929,1740882661760,-509.79,0.00025205,2]
[355053930,1740882661771,-502.11375043,0.00025205,2]
[355053931,1740882661782,-903.97,0.00025205,2]
[355053932,1740882661792,-500.0,0.00025205,2]
[355053933,1740882661802,-1649.27,0.00025205,2]
[355053934,1740882661812,-500.0,0.00025205,2]
[355053935,1740882661822,-500.0,0.00025205,2]
[355053936,1740882661831,-500.0,0.00025205,2]
[355053937,1740882661841,-500.0,0.00025205,2]
[355053938,1740882661850,-540.8,0.00025205,2]
[355053939,1740882661861,-151.0,0.00025205,7]
[355053940,1740882661871,-3226.72,0.00025205,2]
[355053941,1740882661880,-500.0,0.00025205,2]
[355053942,1740882661890,-151.0,0.00025205,7]
[355053943,1740882661900,-2125.69,0.00025205,2]
[355053944,1740882661910,-1923.7,0.00025205,2]
[355053945,1740882661921,-500.0,0.00025205,2]
[355053946,1740882661931,-500.0,0.00025205,2]
[355053947,1740882661942,-151.0,0.00025205,7]
[355053948,1740882661952,-470.53372496,0.00025205,2]
[355053949,1740882661963,-999.4,0.00025205,2]
[355053950,1740882661974,-500.0,0.00025205,2]
[355053951,1740882661983,-500.0,0.00025205,2]
[355053952,1740882661993,-7702.6,0.00025205,2]
[355053953,1740882662003,-1378.78,0.00025205,5]
[355053954,1740882662012,-500.0,0.00025205,2]
[355053955,1740882662022,-1809.29,0.00025205,2]
[355053956,1740882662032,-16126.35,0.00025205,2]
[355053957,1740882662042,-567.82,0.00025205,2]
[355053958,1740882662053,-1014.95749413,0.00025205,2]
[355053959,1740882662062,-500.0,0.00025205,2]
[355053960,1740882662072,-1619.04,0.00025205,2]
[355053961,1740882662082,-500.0,0.00025205,2]
[355053962,1740882662092,-500.0,0.00025205,2]
[355053963,1740882662101,-855.51,0.00025205,2]
[355053964,1740882662112,-500.0,0.00025205,2]
[355053965,1740882662121,-500.0,0.00025205,2]
[355053966,1740882662131,-1717.17,0.00025205,2]
[355053967,1740882662142,-500.0,0.00025205,2]
[355053968,1740882662153,-500.0,0.00025205,2]
[355053969,1740882662163,-2705.69,0.00025205,2]
[355053970,1740882662173,-500.0,0.00025205,2]
[355053971,1740882662183,-500.0,0.00025205,2]
[355053972,1740882662194,-500.0,0.00025205,2]
[355053973,1740882662204,-500.0,0.00025205,2]
[355053974,1740882662214,-500.0,0.00025205,2]
[355053975,1740882662225,-1700.37,0.00025205,2]
[355053976,1740882662237,-1241.33,0.00025205,2]
[355053977,1740882662249,-500.0,0.00025205,2]
[355053978,1740882662260,-507.8117565,0.00025205,2]
[355053979,1740882662270,-500.0,0.00025205,2]
[355053980,1740882662280,-500.0,0.00025205,2]
[355053981,1740882662290,-500.0,0.00025205,2]
[355053982,1740882662300,-500.0,0.00025205,2]
[355053983,1740882662310,-3625.46,0.00025205,2]
[355053984,1740882662320,-500.0,0.00025205,2]
[355053985,1740882662330,-2106.88,0.00025205,2]
[355053986,1740882662341,-500.0,0.00025205,2]
[355053987,1740882662351,-3931.29,0.00025205,2]
[355053988,1740882662362,-733.777173,0.00025205,7]
[355053989,1740882662372,-1305.73,0.00025205,2]
[355053990,1740882662383,-509.58938831,0.00025205,2]
[355053991,1740882662394,-7044.9,0.00025205,2]
[355053992,1740882662404,-500.0,0.00025205,2]
[355053993,1740882662415,-500.0,0.00025205,2]
[355053994,1740882662425,-733.777173,0.00025205,7]
[355053995,1740882662436,-500.0,0.00025205,2]
[355053996,1740882662447,-500.0,0.00025205,2]
[355053997,1740882662457,-346.732813,0.00025205,7]
[355053998,1740882662467,-500.0,0.00025205,2]
[355053999,1740882662478,-1422.78,0.00025205,2]
[355054000,1740882662488,-19976.67,0.00025205,2]
[355054001,1740882662503,-500.0,0.00025205,2]
[355054002,1740882662514,-698.15,0.00025205,2]
[355054003,1740882662525,-346.732813,0.00025205,7]
[355054004,1740882662536,-648.66,0.00025205,2]
[355054005,1740882662546,-576.41587404,0.00025205,2]
[355054006,1740882662557,-1247.05,0.00025205,2]
[355054007,1740882662570,-500.0,0.00025205,2]
[355054008,1740882662582,-151.0,0.00025205,7]
[355054009,1740882662594,-1913.802348,0.00025205,7]
[355054010,1740882662605,-500.0,0.00025205,2]
[355054011,1740882662616,-228.05025,0.00025205,7]
[355054012,1740882662627,-151.0,0.00025205,7]
[355054013,1740882662637,-1913.802348,0.00025205,7]
[355054014,1740882662648,-624.8,0.00025205,2]
[355054015,1740882662659,-228.05025,0.00025205,7]
[355054016,1740882662669,-153.600074,0.00025205,7]
[355054017,1740882662679,-500.0,0.00025205,2]
[355054018,1740882662689,-500.0,0.00025205,2]
[355054019,1740882662699,-1119.36,0.00025205,2]
[355054020,1740882662709,-3724.79,0.00025205,2]
[355054021,1740882662719,-500.0,0.00025205,2]
[355054022,1740882662729,-201.63844117,0.00025205,2]
[355054023,1740882662745,-500.0,0.00025205,2]
[355054024,1740882662756,-377.71538,0.00025205,7]
[355054025,1740882662766,-730.72,0.00025205,2]
[355054026,1740882662775,-530.12960793,0.00025205,2]
[355054027,1740882662786,-500.0,0.00025205,2]
[355054028,1740882662796,-500.0,0.00025205,2]
[355054029,1740882662807,-377.71538,0.00025205,7]
[355054030,1740882662817,-511.57220615,0.00025205,2]
[355054031,1740882662827,-500.0,0.00025205,2]
[355054032,1740882662837,-1101.354987,0.00025205,7]
[355054033,1740882662848,-1000.0,0.00025205,2]
[355054034,1740882662858,-500.0,0.00025273,2]
[355054035,1740882662867,-160.02919242,0.00025273,2]
[355054036,1740882662877,-500.0,0.000253,2]
[355054037,1740882662886,-3000.0,0.00025379,2]
[355054038,1740882662896,-500.0,0.000254,2]
[355054039,1740882662906,-1666.65,0.0002545,2]
[355054040,1740882662915,-1666.69,0.0002545,2]
[355054041,1740882662925,-216.569,0.00025467,10]
[355054042,1740882662935,-900.0,0.00025469,3]
[355054043,1740882662945,-500.0,0.00025473,2]
[355054044,1740882662954,-160.0,0.00025478,2]
[355054045,1740882662965,-155.409277,0.00025478,4]
[355054046,1740882662975,-211.27331194,0.00025479,2]
[355054047,1740882662986,-500.0,0.00025479,2]
[355054048,1740882662999,-500.0,0.00025479,2]
[355054049,1740882663009,-512.76057005,0.00025479,2]
[355054050,1740882663020,-506.80978573,0.00025479,2]
[355054051,1740882663031,-500.0,0.00025479,2]
[355054052,1740882663042,-500.0,0.00025479,2]
[355054053,1740882663053,-535.8375657,0.00025479,2]
[355054054,1740882663064,-155.68639401,0.00025479,2]
[355054055,1740882663075,-500.0,0.00025479,2]
[355054056,1740882663087,-528.00899007,0.00025479,2]
[355054057,1740882663097,-500.0,0.00025479,2]
[355054058,1740882663108,-500.0,0.00025479,2]
[355054059,1740882663118,-500.0,0.00025479,2]
[355054060,1740882663129,-500.0,0.00025479,2]
[355054061,1740882663144,-517.02429512,0.00025479,2]
[355054062,1740882663154,-500.0,0.00025479,2]
[355054063,1740882663165,-500.0,0.00025479,2]
[355054064,1740882663176,-500.0,0.00025479,2]
[355054065,1740882663188,-790.08,0.00025479,2]
[355054066,1740882663199,-500.0,0.00025479,2]
[355054067,1740882663210,-871.27,0.00025479,2]
[355054068,1740882663221,-500.0,0.00025479,2]
[355054069,1740882663233,-500.0,0.00025479,2]
[355054070,1740882663246,-666.14,0.00025479,2]
[355054071,1740882663257,-500.0,0.00025479,2]
[355054072,1740882663268,-500.0,0.00025479,2]
[355054073,1740882663278,-500.0,0.00025479,2]
[355054074,1740882663288,-500.0,0.00025479,2]
[355054075,1740882663299,-1062.6,0.00025479,2]
[355054076,1740882663310,-500.0,0.00025479,2]
[355054077,1740882663329,-500.0,0.00025479,2]
[355054078,1740882663339,-500.0,0.00025479,2]
[355054079,1740882663350,-500.0,0.00025479,2]
[355054080,1740882663361,-643.95,0.00025479,2]
[355054081,1740882663373,-200.0,0.00025479,2]
[355054082,1740882663383,-500.0,0.00025479,2]
[355054083,1740882663394,-500.0,0.00025479,2]
[355054084,1740882663404,-500.0,0.00025479,2]
[355054085,1740882663415,-500.0,0.00025479,2]
[355054086,1740882663426,-848.79,0.00025479,2]
[355054087,1740882663436,-500.0,0.00025479,2]
[355054088,1740882663447,-504.06641962,0.00025479,2]
[355054089,1740882663458,-500.0,0.00025479,2]
[355054090,1740882663470,-500.0,0.00025479,2]
[355054091,1740882663481,-500.0,0.00025479,2]
[355054092,1740882663492,-601.45,0.00025479,2]
[355054093,1740882663505,-500.0,0.00025479,2]
[355054094,1740882663515,-485.79315643,0.00025479,2]
[355054095,1740882663526,-500.0,0.00025479,2]
[355054096,1740882663538,-946.7,0.00025479,2]
[355054097,1740882663549,-500.0,0.00025479,2]
[355054098,1740882663559,-500.0,0.00025479,2]
[355054099,1740882663570,-476.83627928,0.00025479,2]
[355054100,1740882663580,-500.0,0.00025479,2]
[355054101,1740882663589,-798.08,0.00025479,2]
[355054102,1740882663599,-500.0,0.00025479,2]
[355054103,1740882663611,-1191.66,0.00025479,2]
[355054104,1740882663621,-500.0,0.00025479,2]
[355054105,1740882663631,-500.0,0.00025479,2]
[355054106,1740882663642,-500.0,0.00025479,2]
[355054107,1740882663653,-500.0,0.00025479,2]
[355054108,1740882663663,-500.0,0.00025479,2]
[355054109,1740882663674,-500.0,0.00025479,2]
[355054110,1740882663685,-507.3632413,0.00025479,2]
[355054111,1740882663696,-504.8108603,0.00025479,2]
[355054112,1740882663706,-500.0,0.00025479,2]
[355054113,1740882663716,-500.0,0.00025479,2]
[355054114,1740882663726,-508.66955602,0.00025479,2]
[355054115,1740882663736,-500.0,0.00025479,2]
[355054116,1740882663751,-500.0,0.00025479,2]
[355054117,1740882663761,-500.0,0.00025479,2]
[355054118,1740882663771,-500.0,0.00025479,2]
[355054119,1740882663782,-500.0,0.00025479,2]
[355054120,1740882663792,-500.0,0.00025479,2]
[355054121,1740882663803,-500.0,0.00025479,2]
[355054122,1740882663813,-500.0,0.00025479,2]
[355054123,1740882663824,-500.0,0.00025479,2]
[355054124,1740882663835,-624.09032902,0.00025479,2]
[355054125,1740882663847,-500.33,0.00025479,2]
[355054126,1740882663859,-503.837812,0.00025479,2]
[355054127,1740882663870,-500.0,0.00025479,2]
[355054128,1740882663882,-500.0,0.00025479,2]
[355054129,1740882663893,-326.4570672,0.00025479,2]
[355054130,1740882663904,-500.0,0.00025479,2]
[355054131,1740882663915,-500.0,0.00025479,2]
[355054132,1740882663926,-500.0,0.00025479,2]
[355054133,1740882663937,-1144.38,0.00025479,2]
[355054134,1740882663947,-502.87200447,0.00025479,2]
[355054135,1740882663959,-151.0,0.00025479,7]
[355054136,1740882663972,-500.0,0.00025479,2]
[355054137,1740882663983,-955.47,0.00025479,2]
[355054138,1740882663996,-500.0,0.00025479,2]
[355054139,1740882664007,-500.0,0.00025479,2]
[355054140,1740882664019,-544.07,0.00025479,2]
[355054141,1740882664030,-678.05,0.00025479,2]
[355054142,1740882664043,-501.62,0.00025479,2]
[355054143,1740882664056,-500.0,0.00025479,2]
[355054144,1740882664069,-500.0,0.00025479,2]
[355054145,1740882664081,-516.91541024,0.00025479,2]
[355054146,1740882664093,-500.0,0.00025479,2]
[355054147,1740882664105,-450.368911,0.00025479,7]
[355054148,1740882664116,-500.0,0.00025479,2]
[355054149,1740882664129,-450.368911,0.00025479,7]
[355054150,1740882664142,-253.2635271,0.00025479,2]
[355054151,1740882664158,-500.0,0.00025479,2]
[355054152,1740882664171,-151.0,0.00025479,7]
[355054153,1740882664183,-616.44,0.00025479,2]
[355054154,1740882664196,-500.0,0.00025479,2]
[355054155,1740882664208,-500.0,0.00025479,2]
[355054156,1740882664221,-151.0,0.00025479,7]
[355054157,1740882664235,-500.0,0.00025479,2]
[355054158,1740882664248,-500.0,0.00025479,2]
[355054159,1740882664261,-507.14392914,0.00025479,2]
[355054160,1740882664276,-500.0,0.00025479,2]
[355054161,1740882664288,-500.0,0.00025479,2]
[355054162,1740882664301,-509.81132047,0.00025479,2]
[355054163,1740882664314,-807.41,0.00025479,2]
[355054164,1740882664326,-500.0,0.00025479,2]
[355054165,1740882664338,-217.445586,0.00025479,7]
[355054166,1740882664349,-500.0,0.00025479,2]
[355054167,1740882664360,-217.445586,0.00025479,7]
[355054168,1740882664371,-500.0,0.00025479,2]
[355054169,1740882664384,-500.0,0.00025479,2]
[355054170,1740882664395,-500.0,0.00025479,2]
[355054171,1740882664406,-525.44,0.00025479,2]
[355054172,1740882664418,-681.9,0.00025479,2]
[355054173,1740882664430,-500.0,0.00025479,2]
[355054174,1740882664441,-500.0,0.00025479,2]
[355054175,1740882664452,-1466.47,0.00025479,2]
[355054176,1740882664464,-500.0,0.00025479,2]
[355054177,1740882664475,-500.0,0.00025479,2]
[355054178,1740882664485,-500.0,0.00025479,2]
[355054179,1740882664497,-151.0,0.00025479,7]
[355054180,1740882664508,-500.0,0.00025479,2]
[355054181,1740882664520,-533.75,0.00025479,2]
[355054182,1740882664531,-500.0,0.00025479,2]
[355054183,1740882664543,-500.0,0.00025479,2]
[355054184,1740882664554,-663.86,0.00025479,2]
[355054185,1740882664566,-500.0,0.00025479,2]
[355054186,1740882664577,-504.88,0.00025479,2]
[355054187,1740882664588,-819.33,0.00025479,2]
[355054188,1740882664600,-651.68,0.00025479,2]
[355054189,1740882664612,-151.0,0.00025479,7]
[355054190,1740882664623,-500.0,0.00025479,2]
[355054191,1740882664635,-1842.76,0.00025479,2]
[355054192,1740882664646,-500.0,0.00025479,2]
[355054193,1740882664657,-1735.04,0.00025479,2]
[355054194,1740882664959,-299.26333811,0.00025479,2]
[355054195,1740882664971,-509.6257633,0.00025479,2]
[355054196,1740882664981,-1071.28,0.00025479,2]
[355054197,1740882664991,-500.0,0.00025479,2]
[355054198,1740882665003,-509.9991991,0.00025479,2]
[355054199,1740882665013,-509.45244886,0.00025479,2]
[355054200,1740882665023,-535.36643481,0.00025479,2]
[355054201,1740882665035,-1896.39,0.00025479,2]
[355054202,1740882665045,-500.0,0.00025479,2]
[355054203,1740882665055,-500.0,0.00025479,2]
[355054204,1740882665066,-546.66,0.00025479,2]
[355054205,1740882665077,-764.15,0.00025479,2]
[355054206,1740882665087,-238.960978,0.00025479,7]
[355054207,1740882665097,-500.0,0.00025479,2]
[355054208,1740882665107,-1761.57,0.00025479,2]
[355054209,1740882665116,-238.960978,0.00025479,7]
[355054210,1740882665126,-500.0,0.00025479,2]
[355054211,1740882665137,-151.0,0.00025479,7]
[355054212,1740882665149,-507.95027883,0.00025479,2]
[355054213,1740882665159,-500.0,0.00025479,2]
[355054214,1740882665169,-500.0,0.00025479,2]
[355054215,1740882665179,-534.41,0.00025479,2]
[355054216,1740882665188,-500.0,0.00025479,2]
[355054217,1740882665198,-500.0,0.00025479,2]
[355054218,1740882665208,-500.0,0.00025479,2]
[355054219,1740882665219,-500.0,0.00025479,2]
[355054220,1740882665230,-151.0,0.00025479,7]
[355054221,1740882665240,-513.24824027,0.00025479,2]
[355054222,1740882665254,-500.0,0.00025479,2]
[355054223,1740882665264,-500.0,0.00025479,2]
[355054224,1740882665275,-674.54,0.00025479,2]
[355054225,1740882665284,-737.33,0.00025479,2]
[355054226,1740882665294,-500.0,0.00025479,2]
[355054227,1740882665304,-1893.03,0.00025479,2]
[355054228,1740882665315,-1135.49,0.00025479,2]
[355054229,1740882665324,-500.0,0.00025479,2]
[355054230,1740882665334,-500.0,0.00025479,2]
[355054231,1740882665344,-500.0,0.00025479,2]
[355054232,1740882665354,-2396.76,0.00025479,2]
[355054233,1740882665364,-500.0,0.00025479,2]
[355054234,1740882665374,-509.13399352,0.00025479,2]
[355054235,1740882665384,-1120.4,0.00025479,2]
[355054236,1740882665394,-1355.76,0.00025479,2]
[355054237,1740882665404,-500.0,0.00025479,2]
[355054238,1740882665414,-500.0,0.00025479,2]
[355054239,1740882665424,-500.0,0.00025479,2]
[355054240,1740882665433,-1263.97,0.00025479,2]
[355054241,1740882665444,-500.0,0.00025479,2]
[355054242,1740882665454,-500.0,0.00025479,2]
[355054243,1740882665464,-500.0,0.00025479,2]
[355054244,1740882665474,-2840.49,0.00025479,2]
[355054245,1740882665484,-500.0,0.00025479,2]
[355054246,1740882665497,-506.40706134,0.00025479,2]
[355054247,1740882665506,-500.0,0.00025479,2]
[355054248,1740882665516,-500.0,0.00025479,2]
[355054249,1740882665526,-537.95562693,0.00025479,2]
[355054250,1740882665536,-500.0,0.00025479,2]
[355054251,1740882665547,-500.0,0.00025479,2]
[355054252,1740882665557,-500.0,0.00025479,2]
[355054253,1740882665568,-504.03160341,0.00025479,2]
[355054254,1740882665578,-500.0,0.00025479,2]
[355054255,1740882665589,-1934.08,0.00025479,2]
[355054256,1740882665599,-362.73208884,0.00025479,2]
[355054257,1740882665610,-325.34609555,0.00025479,2]
[355054258,1740882665620,-500.0,0.00025479,2]
[355054259,1740882665630,-2095.11,0.00025479,2]
[355054260,1740882665640,-500.0,0.00025479,2]
[355054261,1740882665650,-500.0,0.00025479,2]
[355054262,1740882665660,-1279.69,0.00025479,2]
[355054263,1740882665670,-525.13607345,0.00025479,2]
[355054264,1740882665681,-667.54,0.00025479,2]
[355054265,1740882665691,-500.0,0.00025479,2]
[355054266,1740882665701,-500.0,0.00025479,2]
[355054267,1740882665711,-500.0,0.00025479,2]
[355054268,1740882665722,-500.0,0.00025479,2]
[355054269,1740882665731,-500.0,0.00025479,2]
[355054270,1740882665741,-816.94,0.00025479,2]
[355054271,1740882665753,-1173.65,0.00025479,2]
[355054272,1740882665763,-503.41791922,0.00025479,2]
[355054273,1740882665772,-151.0,0.00025479,7]
[355054274,1740882665782,-500.0,0.00025479,2]
[355054275,1740882665792,-151.0,0.00025479,7]
[355054276,1740882665801,-500.0,0.00025479,2]
[355054277,1740882665811,-151.0,0.00025479,7]
[355054278,1740882665821,-151.0,0.00025479,7]
[355054279,1740882665830,-503.25,0.00025479,2]
[355054280,1740882665840,-848.62,0.00025479,2]
[355054281,1740882665850,-500.0,0.00025479,2]
[355054282,1740882665860,-508.09103729,0.00025479,2]
[355054283,1740882665870,-151.0,0.00025479,7]
[355054284,1740882665880,-151.0,0.00025479,7]
[355054285,1740882665890,-500.0,0.00025479,2]
[355054286,1740882665899,-504.5583236,0.00025479,2]
[355054287,1740882665909,-1917.91,0.00025479,2]
[355054288,1740882665919,-500.0,0.00025479,2]
[355054289,1740882665929,-500.0,0.00025479,2]
[355054290,1740882665939,-1006.21,0.00025479,2]
[355054291,1740882665949,-151.0,0.00025479,7]
[355054292,1740882665966,-1339.71,0.00025479,2]
[355054293,1740882665977,-666.47,0.00025479,2]
[355054294,1740882665987,-151.0,0.00025479,7]
[355054295,1740882666000,-902.27,0.00025479,2]
[355054296,1740882666011,-151.254667,0.00025479,7]
[355054297,1740882666021,-1131.52,0.00025479,2]
[355054298,1740882666031,-2811.74,0.00025479,2]
[355054299,1740882666041,-505.69179935,0.00025479,2]
[355054300,1740882666051,-1585.715627,0.00025479,7]
[355054301,1740882666062,-1585.715627,0.00025479,7]
[355054302,1740882666072,-500.0,0.00025479,2]
[355054303,1740882666083,-1585.715627,0.00025479,7]
[355054304,1740882666094,-500.0,0.00025479,2]
[355054305,1740882666104,-1585.715627,0.00025479,7]
[355054306,1740882666114,-500.0,0.00025479,2]
[355054307,1740882666124,-500.0,0.00025479,2]
[355054308,1740882666135,-151.0,0.00025479,7]
[355054309,1740882666147,-504.09139399,0.00025479,2]
[355054310,1740882666159,-500.0,0.00025479,2]
[355054311,1740882666168,-151.0,0.00025479,7]
[355054312,1740882666179,-504.97,0.00025479,2]
[355054313,1740882666191,-151.0,0.00025479,7]
[355054314,1740882666202,-500.0,0.00025479,2]
[355054315,1740882666212,-500.0,0.00025479,2]
[355054316,1740882666223,-151.0,0.00025479,7]
[355054317,1740882666234,-151.0,0.00025479,7]
[355054318,1740882666246,-519.89410569,0.00025479,2]
[355054319,1740882666256,-605.59,0.00025479,2]
[355054320,1740882666267,-350.177531,0.00025479,7]
[355054321,1740882666278,-350.177531,0.00025479,7]
[355054322,1740882666289,-500.0,0.00025479,2]
[355054323,1740882666300,-151.0,0.00025479,7]
[355054324,1740882666310,-160.601991,0.00025479,7]